[Event "Schachfestival Open-A 2018"]
[Site "Lueneburg"]
[Date "2018.07.06"]
[Round "1"]
[White "Karpatchev, Aleksandr"]
[Black "Hesse, Juergen"]
[Result "1-0"]
[ECO "C24"]
[WhiteElo "2469"]
[BlackElo "1925"]
[Annotator "ChessBase"]
[PlyCount "35"]
[EventDate "2018.07.06"]
[EventType "swiss"]
[EventCountry "GER"]
[SourceTitle "playchess.com"]
[Source "ChessBase"]
[SourceQuality "1"]
[TimeControl "40/5400+30:1800+30"]

1. e4 {[%emt 0:00:07]} e5 {[%emt 0:00:00]} 2. Bc4 {[%emt 0:00:54]} Nf6 {[%emt 0:00:31]} 3. d3 {[%emt 0:00:08]} c6 {[%emt 0:03:02]} 4. Nf3 {[%emt 0:00:50]} d5 {[%emt 0:02:46]} 5. Bb3 {[%emt 0:00:11]} Nbd7 {[%emt 0:05:25]} 6. O-O {[%emt 0:02:11]} Be7 {[%emt 0:02:02]} 7. exd5 {[%emt 0:01:13]} Nxd5 {[%emt 0:04:01]} 8. Re1 {[%emt 0:00:38]} f6 {[%emt 0:03:21]} 9. d4 {[%emt 0:02:07]} exd4 {[%emt 0:03:11]} 10. Qxd4 {[%emt 0:02:16]} N7b6 {[%emt 0:10:20]} 11. Qe4 {[%emt 0:01:59]} Kf8 {[%emt 0:10:00]} 12. Nc3 {[%emt 0:12:19]} Bd6 {[%emt 0:08:54]} 13. Bd2 {[%emt 0:00:31]} Bd7 {[%emt 0:04:09]} 14. Rad1 {[%emt 0:05:48]} Qc7 {[%emt 0:02:35]} 15. Qh4 {[%emt 0:04:32]} Ne7 {[%emt 0:06:39]} 16. Ne4 {[%emt 0:08:10]} Ng6 {[%emt 0:06:02]} 17. Qh5 {[%emt 0:01:41]} Bf4 {[%emt 0:01:39]} 18. Bb4+ {[%emt 0:00:20]} 1-0

[Event "Schachfestival Open-A 2018"]
[Site "Lueneburg"]
[Date "2018.07.06"]
[Round "1"]
[White "Kumsiashvili, Nikoloz"]
[Black "Roehr, Oliver"]
[Result "1-0"]
[ECO "D37"]
[WhiteElo "2411"]
[BlackElo "1900"]
[Annotator "ChessBase"]
[PlyCount "69"]
[EventDate "2018.07.06"]
[EventType "swiss"]
[EventCountry "GER"]
[SourceTitle "playchess.com"]
[Source "ChessBase"]
[SourceQuality "1"]
[TimeControl "40/5400+30:1800+30"]

1. d4 {[%emt 0:00:00]} Nf6 {[%emt 0:00:00]} 2. c4 {[%emt 0:00:00]} e6 {[%emt 0:00:00]} 3. Nf3 {[%emt 0:00:02]} d5 {[%emt 0:00:18]} 4. Nc3 {[%emt 0:00:12]} Be7 {[%emt 0:00:39]} 5. cxd5 {[%emt 0:00:40]} exd5 {[%emt 0:00:14]} 6. Bg5 {[%emt 0:00:05]} O-O {[%emt 0:00:33]} 7. Qc2 {[%emt 0:00:32]} Re8 {[%emt 0:03:51]} 8. e3 {[%emt 0:00:59]} Ne4 {[%emt 0:09:55]} 9. Bxe7 {[%emt 0:00:51]} Rxe7 {[%emt 0:00:23]} 10. Bd3 {[%emt 0:02:10]} Nxc3 {[%emt 0:13:18]} 11. Bxh7+ {[%emt 0:04:52]} Kh8 {[%emt 0:00:11]} 12. bxc3 {[%emt 0:00:04]} g6 {[%emt 0:00:33]} 13. Bxg6 {[%emt 0:00:04]} fxg6 {[%emt 0:00:09]} 14. Qxg6 {[%emt 0:00:11]} Rg7 {[%emt 0:13:10]} 15. Qh6+ {[%emt 0:01:39]} Kg8 {[%emt 0:02:20]} 16. h4 {[%emt 0:05:26]} Bg4 {[%emt 0:08:00]} 17. Ne5 {[%emt 0:02:08]} Qd6 {[%emt 0:07:19]} 18. Qxd6 {[%emt 0:01:16]} cxd6 {[%emt 0:00:08]} 19. Nd3 {[%emt 0:01:51]} Nd7 {[%emt 0:02:23]} 20. f3 {[%emt 0:01:32]} Bf5 {[%emt 0:01:30]} 21. Nf4 {[%emt 0:00:16]} Nb6 {[%emt 0:03:55]} 22. g4 {[%emt 0:00:38]} Bd7 {[%emt 0:00:49]} 23. Kf2 {[%emt 0:02:32]} Rc8 {[%emt 0:01:48]} 24. Rac1 {[%emt 0:00:07]} Kf7 {[%emt 0:06:02]} 25. h5 {[%emt 0:03:24]} Kg8 {[%emt 0:04:31]} 26. Rhg1 {[%emt 0:02:17]} Rf8 {[%emt 0:02:03]} 27. g5 {[%emt 0:01:22]} Kh7 {[%emt 0:02:12]} 28. Rg3 {[%emt 0:02:31]} Rf5 {[%emt 0:01:47]} 29. Rcg1 {[%emt 0:00:30]} Bc6 {[%emt 0:06:31]} 30. h6 {[%emt 0:01:29]} Rg8 {[%emt 0:00:36]} 31. g6+ {[%emt 0:00:36]} Kh8 {[%emt 0:00:08]} 32. Ne6 {[%emt 0:05:56]} Rf6 {[%emt 0:01:34]} 33. g7+ {[%emt 0:00:15]} Kh7 {[%emt 0:00:11]} 34. Ng5+ {[%emt 0:00:29]} Kxh6 {[%emt 0:00:30]} 35. Nf7+ {[%emt 0:00:07]} 1-0

[Event "Schachfestival Open-A 2018"]
[Site "Lueneburg"]
[Date "2018.07.06"]
[Round "1"]
[White "Colpe, Malte"]
[Black "Kiesel, Lucas"]
[Result "1-0"]
[ECO "A40"]
[WhiteElo "2382"]
[BlackElo "1893"]
[Annotator "ChessBase"]
[PlyCount "131"]
[EventDate "2018.07.06"]
[EventType "swiss"]
[EventCountry "GER"]
[SourceTitle "playchess.com"]
[Source "ChessBase"]
[SourceQuality "1"]
[TimeControl "40/5400+30:1800+30"]

1. d4 {[%emt 0:00:00]} e6 {[%emt 0:00:00]} 2. Nf3 {[%emt 0:00:00]} Nf6 {[%emt 0:00:28]} 3. Bf4 {[%emt 0:00:14]} d5 {[%emt 0:00:14]} 4. e3 {[%emt 0:00:39]} Bd6 {[%emt 0:00:18]} 5. Bg3 {[%emt 0:00:12]} O-O {[%emt 0:00:05]} 6. Bd3 {[%emt 0:00:48]} b6 {[%emt 0:00:33]} 7. Nbd2 {[%emt 0:02:51]} Bb7 {[%emt 0:00:56]} 8. Ne5 {[%emt 0:03:09]} c6 {[%emt 0:07:34]} 9. O-O {[%emt 0:03:42]} Nbd7 {[%emt 0:00:22]} 10. Nxf7 {[%emt 0:03:19]} Rxf7 {[%emt 0:00:16]} 11. Bxd6 {[%emt 0:00:09]} c5 {[%emt 0:00:22]} 12. Bg3 {[%emt 0:04:11]} c4 {[%emt 0:00:20]} 13. Be2 {[%emt 0:00:09]} b5 {[%emt 0:00:13]} 14. Bf3 {[%emt 0:02:51]} Qe7 {[%emt 0:01:15]} 15. a4 {[%emt 0:02:34]} Qb4 {[%emt 0:09:10]} 16. axb5 {[%emt 0:01:03]} Qxb5 {[%emt 0:00:01]} 17. Qe2 {[%emt 0:04:18]} Bc6 {[%emt 0:00:54]} 18. Rfb1 {[%emt 0:10:14]} Nb6 {[%emt 0:01:00]} 19. b3 {[%emt 0:09:41]} c3 {[%emt 0:00:23]} 20. Qxb5 {[%emt 0:01:57]} Bxb5 {[%emt 0:00:01]} 21. Ra5 {[%emt 0:00:57]} a6 {[%emt 0:01:50]} 22. Nf1 {[%emt 0:01:03]} Ne4 {[%emt 0:00:56]} 23. Bxe4 {[%emt 0:01:48]} dxe4 {[%emt 0:00:16]} 24. Bd6 {[%emt 0:02:23]} Nd5 {[%emt 0:02:30]} 25. Ng3 {[%emt 0:01:02]} Nf6 {[%emt 0:00:29]} 26. Be5 {[%emt 0:06:05]} Ng4 {[%emt 0:13:41]} 27. Rba1 {[%emt 0:01:27]} Raf8 {[%emt 0:01:53]} 28. Bd6 {[%emt 0:00:36]} Rd8 {[%emt 0:02:48]} 29. Bb4 {[%emt 0:10:03]} Nxf2 {[%emt 0:00:49]} 30. Bxc3 {[%emt 0:02:36]} Rc8 {[%emt 0:01:02]} 31. Bb4 {[%emt 0:00:29]} Ng4 {[%emt 0:15:13]} 32. c4 {[%emt 0:01:34]} Bc6 {[%emt 0:01:09]} 33. Rxa6 {[%emt 0:00:57]} Rb7 {[%emt 0:01:22]} 34. Bc5 {[%emt 0:05:49]} Rxb3 {[%emt 0:02:15]} 35. Nf1 {[%emt 0:02:12]} Rc3 {[%emt 0:04:21]} 36. h3 {[%emt 0:03:08]} Nh6 {[%emt 0:00:19]} 37. Nd2 {[%emt 0:03:04]} Nf5 {[%emt 0:00:34]} 38. R6a3 {[%emt 0:06:11]} Rxe3 {[%emt 0:11:18]} 39. Rxe3 {[%emt 0:02:32]} Nxe3 {[%emt 0:00:02]} 40. Re1 {[%emt 0:02:04]} Nf5 {[%emt 0:14:22]} 41. Nxe4 {[%emt 0:02:50]} Rd8 {[%emt 0:03:45]} 42. Ng5 {[%emt 0:05:59]} Nxd4 {[%emt 0:02:14]} 43. Nxe6 {[%emt 0:00:21]} Nxe6 {[%emt 0:08:51]} 44. Rxe6 {[%emt 0:00:03]} Be8 45. Be3 Kf7 {[%emt 0:06:52]} 46. Ra6 {[%emt 0:04:04]} Bd7 {[%emt 0:04:06]} 47. c5 {[%emt 0:02:44]} Rc8 {[%emt 0:00:28]} 48. Kf2 {[%emt 0:01:48]} h5 {[%emt 0:03:05]} 49. Bd4 {[%emt 0:01:31]} Rc6 {[%emt 0:01:34]} 50. Ra8 {[%emt 0:00:18]} Rc8 {[%emt 0:00:50]} 51. Ra7 {[%emt 0:02:00]} Ke6 {[%emt 0:01:21]} 52. Ra6+ {[%emt 0:00:18]} Rc6 {[%emt 0:00:21]} 53. Ra7 {[%emt 0:01:15]} g6 {[%emt 0:00:21]} 54. Ke3 {[%emt 0:00:51]} Ke7 {[%emt 0:07:48]} 55. Kf4 {[%emt 0:00:54]} Ke8 {[%emt 0:00:46]} 56. Ke5 {[%emt 0:01:59]} Bf5 {[%emt 0:00:48]} 57. Kd5 {[%emt 0:00:21]} Bd7 {[%emt 0:00:11]} 58. Be5 {[%emt 0:01:43]} Rc8 {[%emt 0:02:39]} 59. Ra6 {[%emt 0:00:41]} Bf5 {[%emt 0:00:19]} 60. c6 {[%emt 0:01:39]} Bc2 {[%emt 0:00:28]} 61. Ra7 {[%emt 0:01:38]} Bb3+ {[%emt 0:00:58]} 62. Kc5 {[%emt 0:00:14]} Bf7 {[%emt 0:00:33]} 63. Bd6 {[%emt 0:00:21]} Bb3 {[%emt 0:00:44]} 64. Re7+ {[%emt 0:00:11]} Kd8 {[%emt 0:00:06]} 65. c7+ {[%emt 0:00:11]} Rxc7+ {[%emt 0:00:24]} 66. Rxc7 1-0

[Event "Schachfestival Open-A 2018"]
[Site "Lueneburg"]
[Date "2018.07.06"]
[Round "1"]
[White "Buchenau, Frank"]
[Black "Ploder, Udo"]
[Result "0-1"]
[ECO "C50"]
[WhiteElo "2275"]
[BlackElo "1874"]
[Annotator "NA"]
[PlyCount "80"]
[EventDate "2018.07.06"]
[EventType "swiss"]
[EventCountry "GER"]
[SourceTitle "playchess.com"]
[Source "ChessBase"]
[SourceQuality "1"]
[TimeControl "40/5400+30:1800+30"]

{[%evp 11,80,22,32767,30,32767,33,32767,32767,32767,32767,32767,32767,32767,32767,32767,32767,32767,32767,-83,-97,32767,32,32767,-107,24,0,10,0,313,32767,306,390,369,163,263,255,594,645,666,325,408,463,479,437,454,447,436,464,468,337,339,362,300,404,375,374,443,0,0,-94,-101,32767,32767,32767,32767,32767,32767,32767,-142,-670,-948]} 1. e4 {[%emt 0:00:00]} e5 {[%emt 0:00:00]} 2. Bc4 {[%emt 0:00:00]} Nf6 {[%emt 0:00:03]} 3. d3 {[%emt 0:00:00]} Bc5 {[%emt 0:00:54]} 4. Nf3 {[%emt 0:00:00]} Nc6 {[%emt 0:00:33]} 5. O-O {[%emt 0:00:08]} O-O {[%emt 0:00:36]} 6. c3 {[%emt 0:00:18]} d5 {[%emt 0:01:38]} 7. exd5 {[%emt 0:05:40]} Nxd5 {[%emt 0:00:29]} 8. Re1 {[%emt 0:00:09] LiveBook: 177 Games} Bg4 {[%emt 0:05:34]} 9. h3 {[%emt 0:00:54] C54: Giuoco Piano: 4 c3 Nf6, main lines with 5 d4 and 5 d3} Bh5 {[%emt 0:06:26]} 10. b4 {[%emt 0:01:52]} (10. g4 Bg6 11. Nxe5 Nxe5 12. Rxe5 c6 13. Qf3 Bd6 14. Re1 Kh8 15. Bxd5 cxd5 16. Bf4 d4 17. cxd4 {1-0 (38) McShane,L (2640)-Sethuraman,S (2646) Riadh 2017}) 10... Bxf3 {[%emt 0:10:43]} 11. Qxf3 {[%emt 0:00:43]} Ndxb4 {[%emt 0:00:28]} 12. cxb4 {[%emt 0:03:04]} Bd4 {[%emt 0:00:20]} 13. Nd2 $146 {[%emt 0:27:32]} ({Predecessor:} 13. Bg5 Qxg5 14. b5 Na5 15. Na3 Bxa1 16. Rxa1 Qd2 {0-1 (34) Yearwood,S (1670)-Winter Roach,A (2155) Port of Spain 2017}) 13... Bxa1 {[%emt 0:13:42]} 14. Ne4 {[%emt 0:00:52] [#]} Nd4 $1 {[%emt 0:06:38]} ({Don't go for} 14... Nxb4 $2 15. Bg5 $18) 15. Qh5 {[%emt 0:04:35]} g6 {[%emt 0:01:52]} 16. Qd1 {[%emt 0:12:50]} Kg7 {[%emt 0:05:38]} 17. b5 {[%emt 0:14:19] [#]} (17. a4 $1 $11 {was the only way to keep the balance.}) 17... f5 {[%emt 0:09:58]} (17... a6 $1 $17 {[%cal Ra6b5]} 18. b6 cxb6) 18. Bg5 {[%emt 0:00:38]} Qe8 {[%emt 0:02:00]} 19. Qxa1 {[%emt 0:12:27]} Nc2 $2 {[%emt 0:02:17]} (19... fxe4 $11 20. Qc1 Kh8) 20. Qc1 {[%emt 0:02:46]} Nxe1 {[%emt 0:00:36]} 21. Nc5 {[%emt 0:01:29]} Nxd3 {[%emt 0:01:15]} 22. Bxd3 {[%emt 0:01:18]} (22. Bh6+ $142 Kh8 23. Nxd3) 22... f4 {[%emt 0:01:48] [#]} (22... b6 {kämpft weiter.}) 23. Qc4 $1 {[%emt 0:01:45]} ({Stronger than} 23. Nxb7 h6 $17) 23... Rf7 $2 {[%emt 0:06:50]} (23... Qf7 {is a better chance.}) 24. Ne6+ {[%emt 0:01:29]} Kh8 {[%emt 0:02:30]} 25. Qd5 {[%emt 0:00:40]} Rc8 {[%emt 0:05:10]} (25... h6 {might work better.} 26. Bxh6 Qd7 27. Qxe5+ Kh7) 26. Qxe5+ {[%emt 0:02:19]} Kg8 {[%emt 0:00:10]} 27. Bc4 {[%emt 0:01:40]} c6 {[%emt 0:03:11]} 28. bxc6 {[%emt 0:00:06]} Rxc6 {[%emt 0:00:48]} 29. Bd5 {[%emt 0:01:12]} Rc5 {[%emt 0:01:45]} 30. Qd4 {[%emt 0:00:44]} Rxd5 {[%emt 0:01:00]} 31. Qxd5 {[%emt 0:00:06]} Rf5 {[%emt 0:01:32]} 32. Qb3 {[%emt 0:00:36]} Qb5 {[%emt 0:01:43]} 33. Qc3 {[%emt 0:01:23]} Qd7 {[%emt 0:02:37]} 34. Qc4 $2 {[%emt 0:00:14]} ({Weiss kommt nicht vorbei an} 34. Bh6 $18) 34... b5 {[%emt 0:01:11]} 35. Qb3 {[%emt 0:00:23]} (35. Qe2 $1 $11 {keeps the balance.}) 35... Qd5 {[%emt 0:00:18]} 36. Bxf4 {[%emt 0:01:44]} Qxb3 {[%emt 0:00:33]} 37. axb3 {[%emt 0:00:01]} Rf6 {[%emt 0:00:20]} 38. Be3 {[%emt 0:01:03]} Rxe6 {[%emt 0:00:08]} 39. Bxa7 {[%emt 0:00:02]} Re1+ {[%emt 0:00:21]} 40. Kh2 {[%emt 0:00:08]} Rb1 $19 {[%emt 0:00:13]} 0-1

[Event "Schachfestival Open-A 2018"]
[Site "Lueneburg"]
[Date "2018.07.06"]
[Round "1"]
[White "Weishaeutel, Moritz"]
[Black "Gronsfeld, Stefan"]
[Result "1-0"]
[ECO "C11"]
[WhiteElo "2236"]
[BlackElo "1853"]
[Annotator "NA"]
[PlyCount "67"]
[EventDate "2018.07.06"]
[EventType "swiss"]
[EventCountry "GER"]
[SourceTitle "playchess.com"]
[Source "ChessBase"]
[SourceQuality "1"]
[TimeControl "40/5400+30:1800+30"]

1. e4 {[%emt 0:00:00]} e6 {[%emt 0:00:00]} 2. d4 {[%emt 0:00:34]} d5 {[%emt 0:00:00]} 3. Nc3 {[%emt 0:00:34]} Nf6 {[%emt 0:00:00]} 4. e5 {[%emt 0:00:38]} Nfd7 {[%emt 0:00:02]} 5. f4 {[%emt 0:00:46]} c5 {[%emt 0:00:07]} 6. Nf3 {[%emt 0:00:31]} Nc6 {[%emt 0:00:08]} 7. Be3 {[%emt 0:00:30]} Be7 {[%emt 0:00:57]} 8. Qd2 {[%emt 0:01:39]} a6 {[%emt 0:00:19]} 9. dxc5 {[%emt 0:01:43]} Nxc5 {[%emt 0:00:27] C11: French: Classical System: 4 e5 and 4 Bg5 dxe4} 10. Qf2 {[%emt 0:01:36]} (10. a3 O-O 11. Rd1 b6 12. Be2 a5 13. O-O Ba6 14. Bxa6 Rxa6 {½-½ (48) Nabaty,T (2650)-Kovalenko,I (2659) Martuni 2017}) 10... Nd7 {[%emt 0:01:14]} 11. O-O-O {[%emt 0:00:51]} b5 {[%emt 0:03:59]} 12. Kb1 {[%emt 0:01:54]} Qc7 {[%emt 0:15:38]} 13. Nd4 {[%emt 0:04:21]} Nxd4 {[%emt 0:02:02]} 14. Bxd4 {[%emt 0:00:09]} Nc5 {[%emt 0:06:16]} 15. Bd3 {[%emt 0:21:18]} b4 {[%emt 0:04:27]} 16. Ne2 {[%emt 0:00:32]} Bd7 {[%emt 0:07:31]} 17. Qg3 $146 {[%emt 0:11:38]} ({Predecessor:} 17. g4) 17... g6 {[%emt 0:06:02]} 18. f5 {[%emt 0:01:30]} Nxd3 {[%emt 0:10:33]} 19. fxe6 {[%emt 0:09:51]} Bxe6 {[%emt 0:04:49]} 20. cxd3 {[%emt 0:05:11]} Qb7 {[%emt 0:07:57]} 21. Nf4 {[%emt 0:08:29]} O-O-O {[%emt 0:02:34]} (21... b3 $11) 22. Nxe6 {[%emt 0:01:21]} fxe6 {[%emt 0:00:07]} 23. Qh3 {[%emt 0:00:47]} Kd7 $1 {[%emt 0:02:34]} 24. Rhf1 {[%emt 0:00:36]} Rdf8 {[%emt 0:03:47]} 25. Rxf8 {[%emt 0:01:39]} Bxf8 {[%emt 0:00:10]} 26. Rf1 {[%emt 0:00:14]} Be7 $1 {[%emt 0:01:34]} 27. Rf7 {[%emt 0:01:01]} Qc7 $2 {[%emt 0:03:01] [#]} (27... Qb5 $11) 28. Qh4 $1 {[%emt 0:04:09]} ({Not} 28. Rxh7 Rc8 $11) 28... Kd8 {[%emt 0:02:03]} 29. Qf2 {[%emt 0:01:07]} Kd7 $2 {[%emt 0:01:27] [#]} (29... Ke8 30. Qf6 Bxf6 31. Rxc7 Bd8) 30. Rxe7+ $1 {[%emt 0:00:28]} Kxe7 {[%emt 0:00:10]} 31. Qf6+ {[%emt 0:00:01]} Kd7 {[%emt 0:00:44]} 32. Qxh8 {[%emt 0:00:05]} Kc6 {[%emt 0:00:24]} 33. Qe8+ {[%emt 0:00:06]} Kb7 $18 {[%emt 0:00:43]} 34. Qxe6 {[%emt 0:00:08]} 1-0

[Event "Schachfestival Open-A 2018"]
[Site "Lueneburg"]
[Date "2018.07.06"]
[Round "1"]
[White "Serreck, Uwe"]
[Black "Sebastian, Dirk"]
[Result "0-1"]
[ECO "B06"]
[WhiteElo "1921"]
[BlackElo "2447"]
[Annotator "ChessBase"]
[PlyCount "62"]
[EventDate "2018.07.06"]
[EventType "swiss"]
[EventCountry "GER"]
[SourceTitle "playchess.com"]
[Source "ChessBase"]
[SourceQuality "1"]
[TimeControl "40/5400+30:1800+30"]

1. e4 {[%emt 0:00:00]} g6 {[%emt 0:00:00]} 2. d4 {[%emt 0:00:00]} Bg7 {[%emt 0:00:00]} 3. Nc3 {[%emt 0:00:00]} c6 {[%emt 0:00:50]} 4. Nf3 {[%emt 0:03:06]} d6 {[%emt 0:00:24]} 5. h3 {[%emt 0:00:28]} Nf6 {[%emt 0:00:25]} 6. Bd3 {[%emt 0:03:46]} O-O {[%emt 0:00:51]} 7. O-O {[%emt 0:00:06]} Nbd7 {[%emt 0:05:05]} 8. Re1 {[%emt 0:19:29]} e5 {[%emt 0:00:20]} 9. Be3 {[%emt 0:01:28]} Qe7 {[%emt 0:03:23]} 10. a4 {[%emt 0:02:09]} Re8 {[%emt 0:04:22]} 11. dxe5 {[%emt 0:03:34]} dxe5 {[%emt 0:00:06]} 12. Qd2 {[%emt 0:16:56]} Nc5 {[%emt 0:03:02]} 13. Rad1 {[%emt 0:03:47]} b6 {[%emt 0:17:55]} 14. Bg5 {[%emt 0:13:19]} Bb7 {[%emt 0:12:46]} 15. Bc4 Red8 {[%emt 0:04:50]} 16. Qe2 {[%emt 0:09:43]} a6 {[%emt 0:05:30]} 17. Rxd8+ {[%emt 0:06:30]} Rxd8 {[%emt 0:00:27]} 18. Rd1 {[%emt 0:00:47]} Rxd1+ {[%emt 0:02:03]} 19. Qxd1 {[%emt 0:00:01]} b5 {[%emt 0:01:09]} 20. axb5 {[%emt 0:03:17]} axb5 {[%emt 0:00:09]} 21. Bd3 {[%emt 0:01:33]} h6 {[%emt 0:01:34]} 22. Bxf6 {[%emt 0:00:16]} Bxf6 {[%emt 0:01:55]} 23. Qd2 {[%emt 0:03:52]} Kg7 {[%emt 0:00:18]} 24. Na2 {[%emt 0:04:09]} Ne6 {[%emt 0:06:36]} 25. Qe1 {[%emt 0:02:20]} Qd6 {[%emt 0:04:23]} 26. b4 {[%emt 0:01:08]} Bc8 {[%emt 0:01:06]} 27. Qe3 {[%emt 0:00:29]} Nf4 {[%emt 0:01:24]} 28. Ne1 {[%emt 0:00:27]} Be6 {[%emt 0:00:49]} 29. Nc1 {[%emt 0:01:00]} Qxb4 {[%emt 0:00:42]} 30. Nb3 {[%emt 0:00:24]} Bg5 {[%emt 0:01:50]} 31. Qc5 {[%emt 0:00:23]} Qxe1+ {[%emt 0:00:08]} 0-1

[Event "Schachfestival Open-A 2018"]
[Site "Lueneburg"]
[Date "2018.07.06"]
[Round "1"]
[White "Doederlein, Etienne"]
[Black "Sriram, Jha"]
[Result "0-1"]
[ECO "A46"]
[WhiteElo "1897"]
[BlackElo "2409"]
[Annotator "ChessBase"]
[PlyCount "52"]
[EventDate "2018.07.06"]
[EventType "swiss"]
[EventCountry "GER"]
[SourceTitle "playchess.com"]
[Source "ChessBase"]
[SourceQuality "1"]
[TimeControl "40/5400+30:1800+30"]

1. d4 {[%emt 0:00:00]} Nf6 {[%emt 0:00:01]} 2. Nf3 {[%emt 0:00:00]} c5 {[%emt 0:00:21]} 3. e3 {[%emt 0:00:03]} g6 {[%emt 0:00:33]} 4. b3 {[%emt 0:00:37]} Bg7 {[%emt 0:00:17]} 5. Bb2 {[%emt 0:00:23]} O-O {[%emt 0:01:08]} 6. Be2 {[%emt 0:00:43]} b6 {[%emt 0:02:44]} 7. Nbd2 {[%emt 0:00:54]} Bb7 {[%emt 0:00:34]} 8. c4 {[%emt 0:00:51]} cxd4 {[%emt 0:09:58]} 9. Bxd4 {[%emt 0:01:39]} Nc6 {[%emt 0:00:46]} 10. Bb2 {[%emt 0:00:12]} Qc7 {[%emt 0:01:39]} 11. O-O {[%emt 0:00:13]} Rfd8 {[%emt 0:05:12]} 12. a3 {[%emt 0:02:09]} Rac8 {[%emt 0:00:19]} 13. Qc2 {[%emt 0:03:12]} d5 {[%emt 0:04:13]} 14. cxd5 {[%emt 0:00:17]} Nd4 {[%emt 0:00:52]} 15. Nxd4 {[%emt 0:03:29]} Qxc2 {[%emt 0:00:38]} 16. Nxc2 {[%emt 0:00:02]} Rxc2 {[%emt 0:00:03]} 17. Bxf6 {[%emt 0:01:10]} Bxf6 {[%emt 0:04:28]} 18. Rad1 {[%emt 0:00:14]} Bxd5 {[%emt 0:01:35]} 19. Bf3 {[%emt 0:02:01]} Be6 {[%emt 0:04:56]} 20. Ne4 {[%emt 0:03:33]} Rxd1 {[%emt 0:01:58]} 21. Nxf6+ {[%emt 0:00:08]} exf6 {[%emt 0:00:14]} 22. Bxd1 {[%emt 0:00:22]} Ra2 {[%emt 0:00:43]} 23. a4 {[%emt 0:00:49]} Rb2 {[%emt 0:00:06]} 24. Bf3 {[%emt 0:02:23]} Bxb3 {[%emt 0:00:28]} 25. Bc6 {[%emt 0:00:08]} Rc2 {[%emt 0:03:03]} 26. Bb5 {[%emt 0:00:14]} Ra2 {[%emt 0:00:08]} 0-1

[Event "Schachfestival Open-A 2018"]
[Site "Lueneburg"]
[Date "2018.07.06"]
[Round "1"]
[White "Eickhoff, Hermann"]
[Black "Hess, Mathias Christian"]
[Result "0-1"]
[ECO "B44"]
[WhiteElo "1867"]
[BlackElo "2243"]
[Annotator "NA"]
[PlyCount "66"]
[EventDate "2018.07.06"]
[EventType "swiss"]
[EventCountry "GER"]
[SourceTitle "playchess.com"]
[Source "ChessBase"]
[SourceQuality "1"]
[TimeControl "40/5400+30:1800+30"]

{[%evp 16,65,-8,32767,-3,-20,32767,32767,32767,32767,32767,-24,-4,32767,32767,-26,-12,-29,0,32767,32767,-15,32767,-122,-125,-282,-282,32767,32767,32767,-253,-270,-283,-278,32767,-285,32767,32767,-363,-391,-418,32767,32767,-458,-470,-462,-472,-483,-535,-529,-570,-521]} 1. e4 {[%emt 0:00:00]} c5 {[%emt 0:00:00]} 2. Nf3 {[%emt 0:00:00]} e6 {[%emt 0:00:11]} 3. d4 {[%emt 0:00:27]} cxd4 {[%emt 0:00:06]} 4. Nxd4 {[%emt 0:00:18]} Nc6 {[%emt 0:00:37]} 5. Be3 {[%emt 0:02:12]} Nf6 {[%emt 0:02:23]} 6. Bd3 {[%emt 0:03:15]} d5 {[%emt 0:05:14]} 7. exd5 {[%emt 0:03:15]} Nxd5 {[%emt 0:04:06] B44: Sicilian: Taimanov: 5 Nb5} 8. O-O {[%emt 0:08:16]} (8. Nxc6 bxc6 9. Bd2 Bd6 10. Nc3 O-O 11. Ne4 Bc7 12. O-O f5 13. Ng5 e5 14. c4 Nb6 15. Be2 h6 16. Nf3 e4 17. Ne1 {0-1 (56) Ponomarenko,A (2240)-Alekseev,E (2636) Sochi 2016}) 8... Bd6 {[%emt 0:21:47]} ({Better is} 8... Nxe3 $17 9. fxe3 Nxd4 10. exd4 Qxd4+ 11. Kh1 Qxb2) 9. Nxc6 {[%emt 0:06:37]} bxc6 {[%emt 0:01:14]} 10. Qh5 {[%emt 0:02:00]} g6 {[%emt 0:07:29]} 11. Qf3 $146 {[%emt 0:04:00]} ({Predecessor:} 11. Qh6 Bf8 12. Qg5 Nxe3 13. Qxe3 Bg7 14. c3 Qb6 15. Qe2 O-O 16. Na3 Rd8 17. Rfd1 {½-½ (68) Svatos,J (2370)-Borulya,E (2230) Karvina 1992}) 11... Qc7 {[%emt 0:06:36]} 12. g3 {[%emt 0:05:53]} Nxe3 {[%emt 0:04:22]} 13. Qxe3 {[%emt 0:02:53]} O-O {[%emt 0:02:03]} 14. Nd2 {[%emt 0:01:06]} Be5 {[%emt 0:05:49]} 15. Nc4 {[%emt 0:01:10]} Bg7 {[%emt 0:00:15]} 16. Rad1 {[%emt 0:04:05]} Bb7 {[%emt 0:04:47]} 17. Qc5 {[%emt 0:02:39]} Rfd8 {[%emt 0:02:40]} 18. Be4 {[%emt 0:02:39]} Ba6 {[%emt 0:04:52]} 19. c3 {[%emt 0:08:15]} (19. b3 $11 {keeps the balance.}) 19... Bf8 {[%emt 0:03:43]} 20. Qxc6 $2 {[%emt 0:04:09]} (20. Qe5 $17 {war angesagt.} Qxe5 21. Nxe5 Bxf1 22. Rxf1) 20... Qxc6 {[%emt 0:01:03]} 21. Bxc6 {[%emt 0:00:03]} Bxc4 {[%emt 0:00:37]} 22. Bxa8 Rxa8 23. Rfe1 {[%emt 0:01:24]} Bxa2 {[%emt 0:02:40]} 24. Rd4 {[%emt 0:02:18]} Bc5 {[%emt 0:03:43]} 25. Rd7 {[%emt 0:00:57]} Bd5 {[%emt 0:01:50]} 26. b4 {[%emt 0:00:30]} Bb6 {[%emt 0:00:15]} 27. Rc1 {[%emt 0:01:14]} Rc8 {[%emt 0:01:15]} 28. Kf1 {[%emt 0:01:25]} Rc4 {[%emt 0:00:25]} 29. Ke2 {[%emt 0:01:17]} Kf8 {[%emt 0:00:24]} 30. f3 Ke8 31. Rd6 {[%emt 0:02:40]} Ke7 {[%emt 0:00:38]} 32. Rxd5 {[%emt 0:01:14]} exd5 {[%emt 0:00:12]} 33. Kd3 $19 {[%emt 0:00:26]} Rc6 {[%emt 0:00:57] Kd4} 0-1